bitfinex/quotes_SOLUSD_20241007
["timestamp","ask_amount","ask_price","bid_price","bid_amount"]
[1728330815131,28.6434,147.18,147.14,6.7962]
[1728330815335,21.8489,147.18,147.15,1.35901797]
[1728330815634,28.6433,147.18,147.14,23.7862]
[1728330817845,21.8489,147.18,147.15,6.7957]
[1728330818554,28.6436,147.18,147.14,23.7862]
[1728330818719,21.8489,147.18,147.11,12.44638822]
[1728330819025,6.7965,147.14,147.1,6.7979]
[1728330819222,23.776884,147.17,147.08,29.44288822]
[1728330819419,23.776884,147.17,147.09,6.7985]
[1728330819420,6.7968,147.13,147.09,6.7985]
[1728330821040,6.7963,147.14,147.09,6.7985]
[1728330821445,6.7963,147.14,147.1,6.7979]
[1728330822342,23.776884,147.13,147.08,29.44288822]
[1728330822523,23.776884,147.13,147.1,16.9947]
[1728330822717,23.776884,147.14,147.1,16.9947]
[1728330823039,30.573084,147.14,147.1,16.9947]
[1728330823445,23.776884,147.12,147.09,6.7984]
[1728330823620,40.296384,147.12,147.09,6.7984]
[1728330823825,40.296384,147.12,147.1,6.798]
[1728330826940,15.2757,147.17,147.1,13.80600847]
[1728330827247,22.0706,147.17,147.13,6.7963]
[1728330827757,15.2757,147.17,147.14,6.7962]
[1728330828342,6.7947,147.18,147.14,6.7962]
[1728330828644,6.794,147.19,147.15,6.7956]
[1728330829224,6.7935,147.2,147.16,6.7951]
[1728330830827,23.776884,147.19,147.16,6.7951]
[1728330831437,7.1056035,147.21,147.15,1.35907962]
[1728330831647,6.7933,147.21,147.17,6.7947]
[1728330832356,6.7933,147.21,147.16,23.783]
[1728330832521,7.1048504,147.25,147.22,6.7924]
[1728330832726,6.792,147.24,147.2,16.9831]
[1728330834348,23.776884,147.23,147.2,16.9831]
[1728330835383,30.568984,147.23,147.18,6.7942]
[1728330839156,23.776884,147.23,147.17,1.35877679]
[1728330839453,23.776884,147.23,147.2,6.7932]
[1728330840450,23.776884,147.23,147.19,16.9841]
[1728330840629,6.7911,147.25,147.21,23.7749]
[1728330840838,0.1,147.29,147.21,16.9821]
[1728330841335,6.7907,147.26,147.22,6.7924]
[1728330841740,0.1,147.29,147.23,16.9798]
[1728330842058,6.7903,147.27,147.23,23.7717]
[1728330842246,0.1,147.29,147.23,16.9798]
[1728330842443,6.7913,147.25,147.21,6.7928]
[1728330842641,6.7908,147.26,147.22,6.7925]
[1728330843369,30.568384,147.25,147.2,23.7761]
[1728330843551,30.568384,147.25,147.21,6.793]
[1728330844160,23.776884,147.25,147.21,6.793]
[1728330845340,6.7908,147.26,147.22,6.7921]
[1728330845536,23.776884,147.26,147.23,6.792]
[1728330845848,23.776884,147.26,147.22,16.9809]
[1728330846049,30.567584,147.26,147.22,23.7733]
[1728330846849,23.776884,147.26,147.23,6.792]
[1728330847653,30.567684,147.26,147.22,23.7733]
[1728330848061,6.7905,147.27,147.23,6.792]
[1728330849167,7.2605878,147.28,147.24,6.7915]
[1728330849461,7.2605878,147.28,147.24,23.7702]
[1728330849462,31.0371718,147.28,147.24,23.7702]
[1728330850154,6.7912,147.25,147.21,23.7745]
[1728330850385,23.776884,147.25,147.22,6.7921]
[1728330852642,30.568084,147.25,147.21,23.7748]
[1728330854358,6.7916,147.24,147.21,23.7748]
[1728330854561,30.568084,147.25,147.21,23.7748]
[1728330855148,23.776884,147.25,147.21,16.9819]
[1728330855347,23.776884,147.25,147.22,6.7925]
[1728330855671,7.2607878,147.28,147.24,6.7915]
[1728330855960,6.7902,147.27,147.24,6.7915]
[1728330856169,0.4705878,147.28,147.25,29.39668993]
[1728330856465,0.4705878,147.28,147.27,6.7902]
[1728330856853,0.4705878,147.28,147.26,6.7905]
[1728330858244,0.4705878,147.28,147.26,8.14843185]
[1728330858743,0.4705878,147.28,147.27,6.7902]
[1728330859170,0.4705878,147.28,147.27,19.20928993]
[1728330865478,0.4705878,147.28,147.27,6.7902]
[1728330865676,0.4705878,147.28,147.27,19.20928993]
[1728330871271,0.4705878,147.28,147.27,39.20928993]
[1728330871659,15.1739,147.38,147.28,32.41908993]
[1728330871877,6.7861,147.36,147.31,12.41908993]
[1728330872176,6.7861,147.36,147.32,23.7569]
[1728330872374,15.1739,147.38,147.32,16.969]
[1728330872583,6.787,147.34,147.3,6.7886]
[1728330872800,6.7869,147.35,147.31,6.7882]
[1728330873583,6.7869,147.35,147.31,19.20728993]
[1728330875062,6.7862,147.36,147.32,6.7876]
[1728330877383,6.7866,147.35,147.32,6.7876]
[1728330878269,6.7866,147.35,147.31,23.759]
[1728330878484,6.7871,147.34,147.31,16.9707]
[1728330879081,6.7866,147.35,147.32,1.35751894]
[1728330879283,6.7866,147.35,147.31,23.7589]
[1728330879582,6.7866,147.35,147.31,25.11635208]
[1728330880080,6.7866,147.35,147.31,18.32815208]
[1728330880282,6.7875,147.33,147.29,6.7889]
[1728330880484,39.891684,147.33,147.25,12.41908993]
[1728330880674,6.7885,147.31,147.27,6.7902]
[1728330881184,6.7889,147.3,147.26,6.7906]
[1728330881376,6.7885,147.31,147.27,6.7902]
[1728330881680,39.891684,147.33,147.25,16.977]
[1728330881985,6.7889,147.3,147.26,8.14855799]
[1728330883384,39.891684,147.33,147.26,1.35795799]
[1728330883579,6.7889,147.3,147.26,6.7905]
[1728330884284,6.7885,147.31,147.25,29.39608993]
[1728330884485,6.7885,147.31,147.26,6.7905]
[1728330884664,6.7889,147.3,147.26,6.7905]
[1728330886187,6.7889,147.3,147.26,8.14839261]
[1728330886569,6.7889,147.3,147.26,6.7905]
[1728330887680,39.891684,147.33,147.25,23.768]
[1728330887681,6.7893,147.29,147.25,23.768]
[1728330888287,6.7904,147.27,147.23,6.7917]
[1728330888588,6.7911,147.26,147.22,23.7732]
[1728330888796,6.7912,147.25,147.22,16.9808]
[1728330889168,23.776884,147.26,147.19,50.9514]
[1728330889486,6.7921,147.23,147.19,23.7775]
[1728330890587,6.7917,147.24,147.2,6.7934]
[1728330891790,6.7913,147.25,147.21,8.1514036]
[1728330892688,6.7913,147.25,147.21,6.7929]
[1728330894487,6.7917,147.24,147.2,6.7934]
[1728330895419,23.776884,147.26,147.19,29.40288993]
[1728330895596,6.7912,147.25,147.21,6.7929]
[1728330899193,23.776884,147.26,147.22,8.1506185]
[1728330899399,15.6969,147.27,147.22,1.3584185]
[1728330899774,22.4873,147.27,147.23,23.7716]
[1728330900291,6.791,147.26,147.22,6.7924]
[1728330900592,15.6969,147.27,147.23,1.35823989]
[1728330900808,6.5219,147.29,147.25,12.41908993]
[1728330901100,6.5219,147.29,147.26,16.9765]
[1728330901285,6.5219,147.29,147.26,18.33444245]
[1728330901488,6.5219,147.29,147.27,6.7898]
[1728330901691,15.3834,147.31,147.28,6.7897]
[1728330901992,15.3834,147.31,147.23,12.41908993]
[1728330902301,6.7898,147.28,147.24,6.7915]
[1728330902502,15.3834,147.31,147.25,16.9774]
[1728330902681,23.776884,147.3,147.25,16.9774]
[1728330902876,23.776884,147.3,147.24,6.7916]
[1728330902877,6.7898,147.28,147.24,6.7916]
[1728330903098,6.7893,147.29,147.25,8.14910601]
[1728330903406,6.7893,147.29,147.25,6.791]
[1728330903706,6.7899,147.28,147.24,23.7701]
[1728330904075,6.7905,147.27,147.23,6.7919]
[1728330905278,6.0484,147.29,147.22,12.41908993]
[1728330905486,6.0484,147.29,147.21,16.9817]
[1728330905785,6.0484,147.29,147.21,23.7744]
[1728330905786,22.9371,147.25,147.21,23.7744]
[1728330905987,6.7917,147.24,147.21,16.9817]
[1728330906297,30.568584,147.24,147.2,6.7931]
[1728330907793,6.7921,147.23,147.19,6.7938]
[1728330908301,12.8405,147.23,147.19,6.7938]
[1728330909912,23.776884,147.22,147.15,16.9886]
[1728330910073,6.794,147.19,147.15,23.784]
[1728330910276,22.1572,147.19,147.15,23.784]
[1728330910482,6.7944,147.18,147.15,16.9886]
[1728330911075,15.3632,147.19,147.15,16.9886]
[1728330911289,15.3632,147.19,147.16,8.15392993]
[1728330912010,15.3632,147.19,147.16,6.795]
[1728330913396,15.3632,147.19,147.15,23.7842]
[1728330913899,22.1573,147.19,147.15,23.7842]
[1728330914297,15.3632,147.19,147.15,16.9886]
[1728330914514,6.7944,147.18,147.15,16.9886]
[1728330915291,6.7944,147.18,147.14,6.7962]
[1728330915897,6.7953,147.16,147.12,23.7889]
[1728330916203,6.6661,147.17,147.13,6.7964]
[1728330916397,13.461,147.17,147.13,6.7964]
[1728330916709,6.7954,147.16,147.12,16.9921]
[1728330917003,6.7954,147.16,147.12,23.7892]
[1728330917379,6.796,147.15,147.11,6.7976]
[1728330917692,6.796,147.15,147.1,6.7979]
[1728330918275,6.796,147.15,147.11,6.7976]
[1728330920387,23.776884,147.16,147.1,6.798]
[1728330920592,6.7963,147.14,147.1,6.798]
[1728330921904,23.776884,147.16,147.09,16.9956]
[1728330922100,6.7967,147.13,147.09,23.7937]
[1728330922402,16.5891,147.13,147.09,23.7937]
[1728330922581,6.7976,147.11,147.06,16.9991]
[1728330922788,6.7986,147.09,147.06,16.9991]
[1728330922982,6.7982,147.1,147.06,23.799]
[1728330924095,13.2531,147.11,147.06,23.799]
[1728330924402,13.2531,147.11,147.07,6.7993]
[1728330927087,6.798,147.1,147.06,23.7988]
[1728330928006,6.4554,147.11,147.06,16.9991]
[1728330928200,6.7985,147.09,147.06,16.9991]
[1728330928408,6.4554,147.11,147.03,24.11099611]
[1728330928409,23.776884,147.1,147.03,24.11099611]
[1728330928606,6.7995,147.07,147.03,23.8035]
[1728330928908,40.772384,147.1,147.06,0.4083]
[1728330928909,23.776884,147.1,147.06,0.4083]
[1728330929418,6.7981,147.1,147.06,7.2081]
[1728330929715,13.2531,147.11,147.07,6.7994]
[1728330929914,13.2531,147.11,147.08,8.15864108]
[1728330929915,6.4554,147.11,147.08,8.15864108]
[1728330930093,13.2531,147.11,147.08,1.35974108]
[1728330930293,13.2531,147.11,147.07,23.7977]
[1728330930702,6.7981,147.1,147.07,16.9984]
[1728330931401,6.7981,147.1,147.07,23.7978]
[1728330931603,6.4554,147.11,147.07,23.7978]
[1728330931782,13.2531,147.11,147.07,23.7978]
[1728330932200,6.7982,147.1,147.06,7.2079]
[1728330934814,6.7982,147.1,147.06,19.64891249]
[1728330936798,6.7982,147.1,147.06,7.2079]
[1728330937515,6.7982,147.1,147.06,8.5676838]
[1728330938313,6.7982,147.1,147.06,7.2079]
[1728330938807,6.7986,147.09,147.06,0.4083]
[1728330940440,23.776884,147.1,147.06,0.4083]
[1728330940613,6.7989,147.09,147.06,0.4083]
[1728330944627,13.2532,147.11,147.07,19.24041249]
[1728330945899,13.2532,147.11,147.07,6.7994]
[1728330946105,6.4554,147.11,147.08,6.7989]
[1728330948503,6.7972,147.12,147.08,6.7989]
[1728330950333,23.3859,147.13,147.09,20.59898388]
[1728330950825,16.5891,147.13,147.1,6.7979]
[1728330951312,6.7964,147.14,147.1,19.23891249]
[1728330951505,6.7959,147.15,147.11,20.59788818]
[1728330951700,6.7959,147.15,147.12,19.23811249]
[1728330952322,6.7959,147.15,147.11,19.23841249]
[1728330952536,6.7976,147.11,147.07,16.9976]
[1728330952702,32.5036,147.16,147.07,16.9976]
[1728330952703,23.776884,147.15,147.07,16.9976]
[1728330952910,6.7986,147.09,147.06,6.7998]
[1728330953303,6.7986,147.09,147.05,6.8002]
[1728330953730,6.7986,147.09,147.07,0.4083]
[1728330955206,23.776884,147.1,147.07,0.4083]
[1728330955473,16.2091,147.11,147.07,0.4083]
[1728330955602,6.799,147.08,147.07,0.4083]
[1728330955804,16.2091,147.11,147.07,0.4083]
[1728330955805,6.7987,147.09,147.07,0.4083]
[1728330956023,16.2091,147.11,147.07,0.4083]
[1728330956024,6.799,147.08,147.07,0.4083]
[1728330957028,30.575884,147.08,147.07,0.4083]
[1728330959030,47.073184,147.08,147.07,0.4083]
[1728330963842,23.2963,147.08,147.07,0.4083]
[1728330965317,47.073184,147.08,147.07,0.4083]
[1728330966420,23.2963,147.08,147.07,0.4083]
[1728330966620,33.1545,147.12,147.07,0.4083]
[1728330966934,6.7989,147.09,147.07,0.4083]
[1728330967113,6.799,147.08,147.07,0.4083]
[1728330969632,6.7987,147.09,147.07,0.4083]
[1728330970136,33.1545,147.12,147.07,0.4083]
[1728330970343,33.1545,147.12,147.07,8.5672564]
[1728330970344,6.7976,147.11,147.07,8.5672564]
[1728330970716,32.9493,147.15,147.07,1.7681564]
[1728330970925,6.7972,147.12,147.08,6.799]
[1728330971334,32.9493,147.15,147.07,300.4083]
[1728330971714,6.7982,147.1,147.07,300.4083]
[1728330971914,16.9925,147.13,147.07,300.4083]
[1728330972114,6.7987,147.09,147.07,300.4083]
[1728330972339,6.7982,147.1,147.07,300.4083]
[1728330972639,6.7968,147.13,147.09,6.7985]
[1728330972814,6.7968,147.13,147.08,8.1585182]
[1728330973139,6.7967,147.13,147.09,6.7984]
[1728330974740,6.7967,147.13,147.1,12.43625255]
[1728330975129,6.7958,147.15,147.12,12.43625255]
[1728330975318,6.7958,147.15,147.13,12.43625255]
[1728330976620,16.9876,147.17,147.09,12.43625255]
[1728330976818,6.7977,147.11,147.08,12.43625255]
[1728330978423,6.7977,147.11,147.07,323.7971]
[1728330978942,6.7972,147.12,147.08,6.7989]
[1728330979338,23.776884,147.14,147.09,6.7983]
[1728330979539,6.7968,147.13,147.09,6.7983]
[1728330980245,6.7972,147.12,147.08,26.23545601]
[1728330980738,6.7972,147.12,147.09,1.3595586]
[1728330980925,6.7972,147.12,147.08,26.23545601]
[1728330981330,6.7972,147.12,147.09,1.35955784]
[1728330981521,6.7972,147.12,147.08,26.23545601]
[1728330983234,6.7977,147.11,147.07,323.797]
[1728330984145,6.7973,147.12,147.08,6.7989]
[1728330984442,6.7973,147.12,147.08,27.59502266]
[1728330984649,6.7968,147.13,147.09,6.7984]
[1728330984939,6.7968,147.13,147.09,8.1579661]
[1728330985146,6.7968,147.13,147.09,6.7984]
[1728330985330,23.776884,147.13,147.07,316.9978]
[1728330985527,6.7973,147.12,147.08,8.15849334]
[1728330985852,6.7973,147.12,147.08,27.59504935]
[1728330987254,6.7968,147.13,147.09,6.7985]
[1728330987946,6.7968,147.13,147.09,8.15805533]
[1728330988430,6.7968,147.13,147.09,8.15803724]
[1728330988634,6.7968,147.13,147.1,6.798]
[1728330988832,6.7968,147.13,147.09,23.7944]
[1728330989530,16.2874,147.14,147.09,23.7944]
[1728330989531,23.0838,147.14,147.1,6.7977]
[1728330989752,6.7964,147.14,147.1,6.7977]
[1728330990049,6.7964,147.14,147.11,1.35946867]
[1728330990635,6.7964,147.14,147.11,6.7976]
[1728330992145,6.7964,147.14,147.1,19.43655601]
[1728330992332,6.7964,147.14,147.1,6.7979]
[1728330992533,6.7976,147.11,147.08,26.23535601]
[1728330992735,6.7973,147.12,147.08,6.7988]
[1728330992939,6.7973,147.12,147.11,0.4083]
[1728330993249,6.7968,147.13,147.11,0.4083]
[1728330993939,6.7964,147.14,147.11,0.4083]
[1728330994133,15.4579,147.18,147.11,1.76775494]
[1728330994325,6.7954,147.16,147.12,6.7971]
[1728330994850,6.7954,147.16,147.13,6.7966]
[1728330995047,6.7954,147.16,147.12,43.22605601]
[1728330995250,6.7968,147.13,147.11,0.4083]
[1728330995444,16.9872,147.17,147.11,0.4083]
[1728330995641,6.7967,147.13,147.11,0.4083]
[1728330996045,22.2524,147.18,147.14,6.796]
[1728330996252,30.62451815,147.2,147.13,16.9911]
[1728330996253,6.5319,147.2,147.13,16.9911]
[1728330996454,6.7946,147.18,147.14,6.7962]
[1728330996746,6.7946,147.18,147.13,16.9911]
[1728330996747,6.5319,147.2,147.13,16.9911]
[1728330996952,6.7959,147.15,147.11,7.2058]
[1728330997347,16.9878,147.17,147.11,0.4083]
[1728330997539,6.797,147.13,147.11,0.4083]
[1728330997735,32.9721,147.17,147.11,0.4083]
[1728330997736,6.7964,147.14,147.11,0.4083]
[1728330997937,32.9721,147.17,147.11,0.4083]
[1728330998139,6.7954,147.16,147.12,6.797]
[1728330999143,15.9843,147.17,147.11,17.4021]
[1728330999339,6.7961,147.15,147.11,24.1995]
[1728331000057,6.7963,147.14,147.11,17.4021]
[1728331000253,40.765284,147.16,147.11,0.4083]
[1728331000440,6.7968,147.13,147.11,0.4083]
[1728331000634,40.765284,147.16,147.11,0.4083]
[1728331000838,6.7971,147.12,147.11,0.4083]
[1728331008248,30.573984,147.12,147.11,0.4083]
[1728331010264,46.912084,147.12,147.11,0.4083]
[1728331020259,23.1352,147.12,147.11,0.4083]
[1728331020769,6.7971,147.12,147.11,0.4083]
[1728331021373,15.3219,147.16,147.11,12.85341898]
[1728331021575,40.51841648,147.19,147.12,12.44511898]
[1728331021751,6.7961,147.15,147.12,12.44511898]
[1728331021952,6.7961,147.15,147.13,12.44511898]
[1728331022272,6.7954,147.16,147.13,12.44511898]
[1728331022680,6.7954,147.16,147.12,6.7971]
[1728331023060,6.7949,147.17,147.13,8.15592117]
[1728331023254,15.3219,147.2,147.13,20.78226503]
[1728331023477,6.7945,147.18,147.14,6.7962]
[1728331024355,32.3058,147.2,147.11,36.41674386]
[1728331024663,23.776884,147.19,147.11,23.7912]
[1728331025258,6.7954,147.16,147.11,16.9938]
[1728331025467,6.7945,147.18,147.13,16.9914]
[1728331025671,6.7945,147.18,147.14,6.7961]
[1728331025878,6.7951,147.17,147.13,23.7879]
[1728331026257,6.7945,147.18,147.14,8.15522811]
[1728331026962,13.66246231,147.23,147.14,1.35912811]
[1728331027281,6.794,147.19,147.15,26.21834386]
[1728331028564,6.7935,147.2,147.16,8.15417412]
[1728331028953,6.793,147.21,147.17,6.7948]
[1728331029766,6.793,147.21,147.17,26.21774386]
[1728331030083,6.7925,147.22,147.18,1.35873246]
[1728331030258,6.7926,147.22,147.18,8.15273246]
[1728331030581,6.7926,147.22,147.18,6.794]
[1728331031259,6.7926,147.22,147.18,8.15270655]
[1728331034755,6.7926,147.22,147.18,8.56100655]
[1728331036279,23.776884,147.24,147.18,0.4083]
[1728331036458,6.7926,147.22,147.18,0.4083]
[1728331036657,23.776884,147.24,147.18,0.4083]
[1728331036958,6.7935,147.2,147.18,0.4083]
[1728331037178,6.7939,147.19,147.18,0.4083]
[1728331037659,6.7935,147.2,147.18,0.4083]
[1728331038976,6.793,147.21,147.18,0.4083]
[1728331040183,6.7934,147.2,147.18,0.4083]
[1728331040893,6.7939,147.19,147.18,0.4083]
[1728331041578,23.776884,147.22,147.18,0.4083]
[1728331041781,6.7936,147.2,147.18,0.4083]
[1728331042357,6.7939,147.19,147.18,0.4083]
[1728331043495,30.570784,147.19,147.18,0.4083]
[1728331048292,22.4443,147.22,147.18,0.4083]
[1728331048293,6.7935,147.2,147.18,0.4083]
[1728331049168,6.7939,147.19,147.18,0.4083]
[1728331050294,30.570284,147.21,147.18,0.4083]
[1728331050480,7.1026983,147.25,147.18,0.4083]
[1728331050676,74.33073316,147.26,147.19,1.35865736]
[1728331050677,6.7927,147.22,147.19,1.35865736]
[1728331051176,16.9771,147.26,147.19,1.35865736]
[1728331051375,6.7916,147.24,147.2,6.7933]
[1728331051978,6.7916,147.24,147.21,1.35847153]
[1728331052288,33.9488,147.29,147.21,8.15127153]
[1728331052289,6.7911,147.25,147.21,8.15127153]
[1728331052896,6.792,147.24,147.2,43.19934386]
[1728331053096,6.7921,147.23,147.2,16.9831]
[1728331053391,6.7921,147.23,147.19,6.7938]
[1728331054304,6.7925,147.22,147.19,1.35845524]
[1728331054595,6.7921,147.23,147.19,8.15215524]
[1728331054799,6.7915,147.25,147.2,6.7933]
[1728331055092,6.7917,147.24,147.21,1.35840809]
[1728331055793,6.7913,147.25,147.21,1.35840809]
[1728331057299,6.7913,147.25,147.21,1.76670809]
[1728331057903,23.776884,147.29,147.21,1.76670809]
[1728331058083,6.7917,147.24,147.21,1.76670809]
[1728331059390,6.7917,147.24,147.21,0.4083]
[1728331059895,6.7917,147.24,147.21,1.76667541]
[1728331060201,23.776884,147.29,147.21,1.76667541]
[1728331060202,6.7912,147.25,147.21,1.76667541]
[1728331060397,6.7916,147.24,147.21,1.76663756]
[1728331060597,23.776884,147.29,147.21,1.76663756]
[1728331060788,6.7907,147.26,147.21,7.2009]
[1728331061099,6.7907,147.26,147.22,1.35825567]
[1728331061675,6.7912,147.25,147.21,7.2009]
[1728331062600,6.7917,147.24,147.21,0.4083]
[1728331063303,23.776884,147.27,147.21,0.4083]
[1728331064303,6.7922,147.23,147.21,0.4083]
[1728331066106,23.776884,147.27,147.21,0.4083]
[1728331066301,6.7925,147.22,147.21,0.4083]
[1728331077402,30.569384,147.22,147.21,0.4083]
[1728331078909,6.7925,147.22,147.21,0.4083]
[1728331079120,6.3178,147.24,147.21,0.4083]
[1728331079121,6.7921,147.23,147.21,0.4083]
[1728331079305,6.7917,147.24,147.21,0.4083]
[1728331079514,6.7917,147.24,147.22,1.35838297]
[1728331080192,6.7917,147.24,147.21,14.19042896]
[1728331080717,30.569384,147.22,147.21,0.4083]
[1728331081222,6.7934,147.2,147.16,19.21906028]
[1728331082097,6.794,147.19,147.16,12.42376028]
[1728331082719,6.7944,147.18,147.15,29.41276028]
[1728331083009,6.7944,147.18,147.15,16.989]
[1728331083421,23.776884,147.22,147.16,12.42376028]
[1728331083591,6.793,147.22,147.18,19.21796028]
[1728331083788,15.3731,147.24,147.19,1.35856732]
[1728331084011,15.3731,147.24,147.19,1.3586257]
[1728331084212,6.793,147.21,147.19,1.3586257]
[1728331084591,6.793,147.21,147.18,12.42376028]
[1728331085409,15.3731,147.24,147.18,12.42376028]
[1728331085617,6.7928,147.22,147.18,12.42376028]
[1728331085805,6.7937,147.2,147.17,12.42376028]
[1728331086916,6.7935,147.2,147.16,12.42376028]
[1728331087412,6.7935,147.2,147.17,12.42376028]
[1728331087592,6.7935,147.2,147.16,19.21866028]
[1728331087795,6.7924,147.23,147.19,6.7938]
[1728331087995,16.9765,147.27,147.2,12.42376028]
[1728331088197,6.7916,147.24,147.21,1.35840506]
[1728331088613,6.7916,147.24,147.21,13.78216534]
[1728331089817,16.9765,147.27,147.22,12.42376028]
[1728331090023,6.7914,147.25,147.22,12.42376028]
[1728331090550,6.7914,147.25,147.23,1.35828392]
[1728331091328,6.7908,147.26,147.23,1.35828392]
[1728331091626,6.7914,147.25,147.21,19.21666028]
[1728331092698,16.973,147.3,147.24,12.42376028]
[1728331092904,6.7902,147.27,147.25,13.78181765]
[1728331094493,6.7902,147.27,147.25,1.35805737]
[1728331096924,6.7907,147.26,147.23,12.42376028]
[1728331097217,6.7911,147.25,147.23,12.42376028]
[1728331097900,6.7908,147.26,147.23,12.42376028]
[1728331098115,6.7906,147.27,147.24,12.42376028]
[1728331098424,6.7906,147.27,147.23,19.21556028]
[1728331098927,6.7907,147.26,147.23,0.4083]
[1728331099229,6.7913,147.25,147.23,0.4083]
[1728331099403,6.7916,147.24,147.23,0.4083]
[1728331102328,30.568484,147.24,147.23,0.4083]
[1728331103129,6.7949,147.17,147.14,27.78756028]
[1728331103429,6.7941,147.19,147.14,34.58336028]
[1728331103617,6.7941,147.19,147.15,12.42376028]
[1728331104531,6.7941,147.19,147.14,22.1596]
[1728331104703,23.776884,147.2,147.13,16.9908]
[1728331104907,6.7956,147.16,147.12,6.797]
[1728331105108,6.7958,147.15,147.11,6.7975]
[1728331106127,6.7954,147.16,147.12,6.7971]
[1728331107415,6.7954,147.16,147.11,6.7973]
[1728331108612,23.776884,147.18,147.1,16.9945]
[1728331108812,6.7972,147.12,147.07,316.9978]
[1728331109035,6.7977,147.11,147.07,316.9978]
[1728331109209,6.7977,147.11,147.07,323.7972]
[1728331110110,6.7974,147.12,147.07,323.7972]
[1728331110332,6.7974,147.12,147.08,6.7989]
[1728331110650,16.9902,147.15,147.07,300.0]
[1728331110651,6.7986,147.09,147.07,300.0]
[1728331111723,32.3312,147.13,147.07,300.0]
[1728331111724,23.776884,147.12,147.07,300.0]
[1728331111921,6.799,147.08,147.07,300.0]
[1728331119133,6.7979,147.11,147.07,300.0]
[1728331119335,6.7979,147.11,147.08,1.35965794]
[1728331119536,6.7982,147.1,147.07,300.0]
[1728331120247,6.7982,147.1,147.08,1.35966261]
[1728331121345,6.7972,147.12,147.08,8.15856261]
[1728331121546,6.7972,147.12,147.08,1.35966261]
[1728331122344,6.7976,147.11,147.08,1.35966261]
[1728331122727,6.7972,147.12,147.08,8.15856261]
[1728331123130,6.7968,147.13,147.09,6.7981]
[1728331123349,6.7968,147.13,147.1,1.35940696]
[1728331124243,6.7968,147.13,147.09,6.7981]
[1728331124622,6.7968,147.13,147.1,1.35944727]
[1728331126445,6.7968,147.13,147.1,13.7954372]
[1728331128436,6.7963,147.14,147.1,20.5933372]
[1728331130153,16.3629,147.17,147.12,12.43598993]
[1728331130357,6.7963,147.14,147.11,29.42978993]
[1728331130568,6.7963,147.14,147.11,16.9938]
[1728331130737,6.7963,147.14,147.1,6.7979]
[1728331131557,6.7963,147.14,147.1,19.23388993]
[1728331131962,6.7969,147.13,147.1,12.43598993]
[1728331132761,6.7963,147.14,147.11,1.35930247]
[1728331133133,6.7963,147.14,147.1,19.23398993]
[1728331133858,6.7963,147.14,147.11,12.43598993]
[1728331134044,6.797,147.13,147.1,12.43598993]
[1728331134361,40.765384,147.16,147.09,12.43598993]
[1728331134744,6.7972,147.12,147.09,12.43598993]
[1728331135844,6.7972,147.12,147.09,19.23448993]
[1728331137168,6.7972,147.12,147.1,12.43598993]
[1728331137964,6.7972,147.12,147.1,13.79539851]
[1728331138371,16.3629,147.17,147.11,12.43598993]
[1728331138546,6.7958,147.15,147.13,12.43598993]
[1728331139665,6.1975,147.18,147.07,300.0]
[1728331139967,16.9876,147.17,147.12,12.43598993]
[1728331140352,23.776884,147.14,147.08,12.43598993]
[1728331140548,6.7977,147.11,147.08,12.43598993]
[1728331140861,6.7973,147.12,147.08,19.23488993]
[1728331141049,6.7973,147.12,147.09,12.43598993]
[1728331141247,23.776884,147.14,147.08,12.43598993]
[1728331141449,6.798,147.11,147.08,12.43598993]
[1728331142039,6.7981,147.1,147.07,312.43598993]
[1728331142244,23.776884,147.14,147.07,312.43598993]
[1728331142558,6.7977,147.11,147.07,319.23538993]